[Event "Titled Tuesday Blitz November 29 Early 2022"]
[White "Bowden, Karl"]
[Black "Drozdowski, Kacper"]
[WhiteFideId "400548"]
[BlackFideId "1136720"]
[WhiteElo "2493"]
[BlackElo "2485"]
[Result "0-1"]
[Round "06"]
[TimeControl "180+1"]
[Date "2022.11.30"]
[WhiteClock "0:00:41"]
[BlackClock "0:01:59"]

1. e4 {[%clk 0:02:59]}  c5 {[%clk 0:03:00]} 2. c3 {[%clk 0:02:59]}  d6 {[%clk 0:03:00]} 3. d4 {[%clk 0:02:59]}  Nf6 {[%clk 0:03:00]} 4. Bd3 {[%clk 0:02:59]}  Nc6 {[%clk 0:03:01]} 5. Ne2 {[%clk 0:02:58]}  e5 {[%clk 0:03:00]} 6. O-O {[%clk 0:02:55]}  g6 {[%clk 0:02:57]} 7. d5 {[%clk 0:02:48]}  Ne7 {[%clk 0:02:56]} 8. f4 {[%clk 0:02:33]}  Nd7 {[%clk 0:02:55]} 9. Bb5 {[%clk 0:02:32]}  Bg7 {[%clk 0:02:52]} 10. fxe5 {[%clk 0:02:26]}  Bxe5 {[%clk 0:02:52]} 11. Bf4 {[%clk 0:02:07]}  Bxf4 {[%clk 0:02:49]} 12. Nxf4 {[%clk 0:02:04]}  a6 {[%clk 0:02:41]} 13. Bxd7+ {[%clk 0:02:02]}  Bxd7 {[%clk 0:02:42]} 14. c4 {[%clk 0:01:56]}  O-O {[%clk 0:02:34]} 15. Nc3 {[%clk 0:01:55]}  f5 {[%clk 0:02:33]} 16. Qe2 {[%clk 0:01:45]}  fxe4 {[%clk 0:02:33]} 17. Nxe4 {[%clk 0:01:42]}  Nf5 {[%clk 0:02:33]} 18. Rae1 {[%clk 0:01:38]}  Qh4 {[%clk 0:02:24]} 19. g3 {[%clk 0:01:29]}  Qe7 {[%clk 0:02:23]} 20. Qd3 {[%clk 0:01:14]}  Rae8 {[%clk 0:02:10]} 21. Nxc5 {[%clk 0:00:44]}  Qxe1 {[%clk 0:02:09]} 22. Rxe1 {[%clk 0:00:44]}  Rxe1+ {[%clk 0:02:09]} 23. Kf2 {[%clk 0:00:45]}  Re3 {[%clk 0:02:07]} 24. Qxe3 {[%clk 0:00:43]}  Nxe3 {[%clk 0:02:07]} 25. Nxd7 {[%clk 0:00:43]}  Ng4+ {[%clk 0:02:00]} 26. Kf3 {[%clk 0:00:41]}  Ne5+ {[%clk 0:01:59]} 0-1


[Site "https://www.chess.com"]

[Event "Titled Tuesday Blitz November 29 Early 2022"]
[White "Buksa, Nataliya"]
[Black "sabkeIXO"]
[WhiteFideId "14123622"]
[WhiteElo "2313"]
[BlackElo "2493"]
[Result "0-1"]
[Round "06"]
[TimeControl "180+1"]
[Date "2022.11.30"]
[WhiteClock "0:01:29"]
[BlackClock "0:00:50"]

1. d4 {[%clk 0:03:00]}  Nf6 {[%clk 0:02:59]} 2. Nc3 {[%clk 0:03:01]}  d5 {[%clk 0:02:58]} 3. Bf4 {[%clk 0:03:02]}  e6 {[%clk 0:02:56]} 4. e3 {[%clk 0:03:02]}  Bd6 {[%clk 0:02:57]} 5. Nf3 {[%clk 0:03:02]}  O-O {[%clk 0:02:57]} 6. Bd3 {[%clk 0:03:01]}  Bxf4 {[%clk 0:02:54]} 7. exf4 {[%clk 0:03:01]}  c5 {[%clk 0:02:52]} 8. dxc5 {[%clk 0:03:01]}  Qa5 {[%clk 0:02:45]} 9. O-O {[%clk 0:03:01]}  Qxc5 {[%clk 0:02:45]} 10. Ne2 {[%clk 0:03:02]}  b6 {[%clk 0:02:41]} 11. c3 {[%clk 0:03:02]}  Ba6 {[%clk 0:02:40]} 12. Ned4 {[%clk 0:03:02]}  Bxd3 {[%clk 0:02:40]} 13. Qxd3 {[%clk 0:03:03]}  Nc6 {[%clk 0:02:33]} 14. Nxc6 {[%clk 0:02:57]}  Qxc6 {[%clk 0:02:33]} 15. Ne5 {[%clk 0:02:56]}  Qc7 {[%clk 0:02:28]} 16. Rae1 {[%clk 0:02:57]}  Rab8 {[%clk 0:02:20]} 17. f5 {[%clk 0:02:55]}  b5 {[%clk 0:02:15]} 18. fxe6 {[%clk 0:02:53]}  fxe6 {[%clk 0:02:16]} 19. Nf3 {[%clk 0:02:54]}  Rfe8 {[%clk 0:02:12]} 20. Re5 {[%clk 0:02:48]}  b4 {[%clk 0:02:01]} 21. Rfe1 {[%clk 0:02:41]}  bxc3 {[%clk 0:02:01]} 22. bxc3 {[%clk 0:02:42]}  Ne4 {[%clk 0:01:26]} 23. c4 {[%clk 0:02:39]}  Qc5 {[%clk 0:01:26]} 24. Qd4 {[%clk 0:02:36]}  Qxd4 {[%clk 0:01:17]} 25. Nxd4 {[%clk 0:02:37]}  Nc5 {[%clk 0:01:00]} 26. cxd5 {[%clk 0:02:05]}  Nd3 {[%clk 0:00:59]} 27. Kf1 {[%clk 0:01:54]}  Nxe5 {[%clk 0:00:59]} 28. Rxe5 {[%clk 0:01:53]}  exd5 {[%clk 0:00:59]} 29. Rxe8+ {[%clk 0:01:49]}  Rxe8 {[%clk 0:01:00]} 30. Nc6 {[%clk 0:01:48]}  a6 {[%clk 0:00:59]} 31. f3 {[%clk 0:01:49]}  Kf7 {[%clk 0:00:59]} 32. Kf2 {[%clk 0:01:48]}  Ke6 {[%clk 0:01:00]} 33. Nd4+ {[%clk 0:01:45]}  Ke5 {[%clk 0:00:58]} 34. Ke3 {[%clk 0:01:46]}  Rc8 {[%clk 0:00:57]} 35. f4+ {[%clk 0:01:43]}  Kf6 {[%clk 0:00:55]} 36. Kd3 {[%clk 0:01:40]}  Rc1 {[%clk 0:00:55]} 37. g4 {[%clk 0:01:40]}  Rd1+ {[%clk 0:00:55]} 38. Ke3 {[%clk 0:01:39]}  Ra1 {[%clk 0:00:54]} 39. g5+ {[%clk 0:01:39]}  Ke7 {[%clk 0:00:54]} 40. Nf5+ {[%clk 0:01:38]}  Kf7 {[%clk 0:00:54]} 41. Kd4 {[%clk 0:01:36]}  Rxa2 {[%clk 0:00:53]} 42. Kxd5 {[%clk 0:01:34]}  Rxh2 {[%clk 0:00:53]} 43. Nd6+ {[%clk 0:01:34]}  Kg6 {[%clk 0:00:52]} 44. Nb7 {[%clk 0:01:29]}  Kf5 {[%clk 0:00:50]} 45. Nc5 {[%clk 0:01:29]}  Kxf4 {[%clk 0:00:50]} 46. Ne6+ {[%clk 0:01:28]}  Kf5 {[%clk 0:00:50]} 47. Nxg7+ {[%clk 0:01:28]}  Kxg5 {[%clk 0:00:50]} 48. Ne6+ {[%clk 0:01:29]}  Kf6 {[%clk 0:00:51]} 49. Nf4 {[%clk 0:01:29]}  a5 {[%clk 0:00:50]} 0-1


[Site "https://www.chess.com"]

[Event "Titled Tuesday Blitz November 29 Early 2022"]
[White "Cappelletto, Joshuaede"]
[Black "Durarbayli, Vasif"]
[WhiteFideId "2824383"]
[BlackFideId "13402935"]
[WhiteElo "2237"]
[BlackElo "2586"]
[Result "0-1"]
[Round "06"]
[TimeControl "180+1"]
[Date "2022.11.30"]
[WhiteClock "0:00:15"]
[BlackClock "0:00:08"]

1. c4 {[%clk 0:03:00]}  c6 {[%clk 0:02:59]} 2. d4 {[%clk 0:02:58]}  d5 {[%clk 0:03:00]} 3. Nf3 {[%clk 0:02:57]}  Nf6 {[%clk 0:02:59]} 4. cxd5 {[%clk 0:02:56]}  cxd5 {[%clk 0:02:58]} 5. Nc3 {[%clk 0:02:55]}  Nc6 {[%clk 0:02:59]} 6. Bf4 {[%clk 0:02:54]}  a6 {[%clk 0:02:59]} 7. e3 {[%clk 0:02:54]}  Bg4 {[%clk 0:02:58]} 8. Bd3 {[%clk 0:02:52]}  e6 {[%clk 0:02:58]} 9. h3 {[%clk 0:02:53]}  Bxf3 {[%clk 0:02:58]} 10. Qxf3 {[%clk 0:02:52]}  Bd6 {[%clk 0:02:57]} 11. O-O {[%clk 0:02:52]}  Bxf4 {[%clk 0:02:56]} 12. Qxf4 {[%clk 0:02:52]}  O-O {[%clk 0:02:56]} 13. a3 {[%clk 0:02:52]}  Rc8 {[%clk 0:02:51]} 14. Rfc1 {[%clk 0:02:48]}  Na5 {[%clk 0:02:45]} 15. Rc2 {[%clk 0:02:45]}  Nb3 {[%clk 0:02:41]} 16. Rd1 {[%clk 0:02:42]}  Qd7 {[%clk 0:02:29]} 17. Re2 {[%clk 0:02:36]}  h6 {[%clk 0:02:24]} 18. Bb1 {[%clk 0:02:35]}  Rfd8 {[%clk 0:02:19]} 19. Kh1 {[%clk 0:02:07]}  Na5 {[%clk 0:01:58]} 20. g4 {[%clk 0:02:01]}  Qd6 {[%clk 0:01:47]} 21. Qf3 {[%clk 0:01:59]}  Nc4 {[%clk 0:01:45]} 22. Rg1 {[%clk 0:01:56]}  e5 {[%clk 0:01:14]} 23. dxe5 {[%clk 0:01:44]}  Qxe5 {[%clk 0:01:11]} 24. h4 {[%clk 0:01:16]}  Nxa3 {[%clk 0:00:22]} 25. Bf5 {[%clk 0:01:10]}  Rc4 {[%clk 0:00:20]} 26. bxa3 {[%clk 0:01:06]}  Qxc3 {[%clk 0:00:19]} 27. Rc2 {[%clk 0:01:04]}  Qb3 {[%clk 0:00:16]} 28. Rxc4 {[%clk 0:01:03]}  Qxc4 {[%clk 0:00:17]} 29. Bb1 {[%clk 0:00:50]}  Ne4 {[%clk 0:00:13]} 30. g5 {[%clk 0:00:43]}  hxg5 {[%clk 0:00:11]} 31. hxg5 {[%clk 0:00:43]}  Nd2 {[%clk 0:00:12]} 32. Qd1 {[%clk 0:00:16]}  Qh4+ {[%clk 0:00:10]} 33. Kg2 {[%clk 0:00:15]}  Qxg5+ {[%clk 0:00:10]} 34. Kh2 {[%clk 0:00:16]}  Qh4+ {[%clk 0:00:11]} 35. Kg2 {[%clk 0:00:16]}  Nxb1 {[%clk 0:00:11]} 36. Qxb1 {[%clk 0:00:16]}  Qe4+ {[%clk 0:00:10]} 37. Qxe4 {[%clk 0:00:15]}  dxe4 {[%clk 0:00:11]} 38. Rb1 {[%clk 0:00:15]}  b5 {[%clk 0:00:11]} 39. Rb4 {[%clk 0:00:16]}  f5 {[%clk 0:00:10]} 40. a4 {[%clk 0:00:16]}  Rd5 {[%clk 0:00:10]} 41. axb5 {[%clk 0:00:17]}  axb5 {[%clk 0:00:11]} 42. Rb2 {[%clk 0:00:17]}  Kf7 {[%clk 0:00:11]} 43. Ra2 {[%clk 0:00:18]}  Kf6 {[%clk 0:00:12]} 44. Ra7 {[%clk 0:00:18]}  g5 {[%clk 0:00:10]} 45. Rb7 {[%clk 0:00:19]}  f4 {[%clk 0:00:10]} 46. exf4 {[%clk 0:00:18]}  gxf4 {[%clk 0:00:10]} 47. Kh3 {[%clk 0:00:19]}  Kf5 {[%clk 0:00:11]} 48. Rf7+ {[%clk 0:00:18]}  Ke5 {[%clk 0:00:11]} 49. Rb7 {[%clk 0:00:19]}  Kd4 {[%clk 0:00:09]} 50. Kg4 {[%clk 0:00:19]}  f3 {[%clk 0:00:09]} 51. Kf4 {[%clk 0:00:20]}  Kd3 {[%clk 0:00:09]} 52. Re7 {[%clk 0:00:18]}  b4 {[%clk 0:00:08]} 53. Rb7 {[%clk 0:00:16]}  Rd4 {[%clk 0:00:08]} 54. Ke5 {[%clk 0:00:16]}  Rc4 {[%clk 0:00:08]} 55. Rd7+ {[%clk 0:00:15]}  Kc3 {[%clk 0:00:08]} 56. Kf4 {[%clk 0:00:15]}  b3 {[%clk 0:00:08]} 0-1


[Site "https://www.chess.com"]

[Event "Titled Tuesday Blitz November 29 Early 2022"]
[White "Chernobay, Artem"]
[Black "Przybylski, Wojciech"]
[WhiteFideId "4167406"]
[BlackFideId "1117599"]
[WhiteElo "2473"]
[BlackElo "2221"]
[Result "1-0"]
[Round "06"]
[TimeControl "180+1"]
[Date "2022.11.30"]
[WhiteClock "0:00:26"]
[BlackClock "0:00:01"]

1. e4 {[%clk 0:03:00]}  e5 {[%clk 0:02:55]} 2. Nf3 {[%clk 0:02:59]}  Nc6 {[%clk 0:02:53]} 3. d4 {[%clk 0:02:59]}  exd4 {[%clk 0:02:53]} 4. Bc4 {[%clk 0:03:00]}  Nf6 {[%clk 0:02:52]} 5. O-O {[%clk 0:02:59]}  Be7 {[%clk 0:02:49]} 6. e5 {[%clk 0:02:53]}  Ne4 {[%clk 0:02:41]} 7. Re1 {[%clk 0:02:49]}  Nc5 {[%clk 0:02:39]} 8. Nxd4 {[%clk 0:02:49]}  Nxd4 {[%clk 0:02:37]} 9. Qxd4 {[%clk 0:02:49]}  O-O {[%clk 0:02:33]} 10. Nc3 {[%clk 0:02:47]}  c6 {[%clk 0:02:23]} 11. Be3 {[%clk 0:02:10]}  d5 {[%clk 0:01:48]} 12. exd6 {[%clk 0:02:10]}  Qxd6 {[%clk 0:01:48]} 13. Rad1 {[%clk 0:02:03]}  Qxd4 {[%clk 0:01:45]} 14. Bxd4 {[%clk 0:02:04]}  Ne6 {[%clk 0:01:42]} 15. Be5 {[%clk 0:01:59]}  a5 {[%clk 0:01:18]} 16. Na4 {[%clk 0:01:27]}  Bd8 {[%clk 0:01:04]} 17. Bd6 {[%clk 0:01:22]}  Re8 {[%clk 0:01:04]} 18. Nc5 {[%clk 0:01:20]}  Bf6 {[%clk 0:00:58]} 19. c3 {[%clk 0:01:09]}  b6 {[%clk 0:00:44]} 20. Ne4 {[%clk 0:01:08]}  Be7 {[%clk 0:00:16]} 21. Bxe7 {[%clk 0:00:59]}  Rxe7 {[%clk 0:00:17]} 22. Nd6 {[%clk 0:00:58]}  Ba6 {[%clk 0:00:08]} 23. Nf5 {[%clk 0:00:45]}  Rea7 {[%clk 0:00:07]} 24. Bxe6 {[%clk 0:00:34]}  fxe6 {[%clk 0:00:06]} 25. Rxe6 {[%clk 0:00:35]}  Rf7 {[%clk 0:00:01]} 26. Ne7+ {[%clk 0:00:31]}  Kf8 {[%clk 0:00:02]} 27. Nxc6 {[%clk 0:00:31]}  Bc4 {[%clk 0:00:02]} 28. Red6 {[%clk 0:00:29]}  Rf6 {[%clk 0:00:02]} 29. b3 {[%clk 0:00:26]}  Rxd6 {[%clk 0:00:01]} 30. Rxd6 {[%clk 0:00:27]}  Bb5 {[%clk 0:00:01]} 31. Nd4 {[%clk 0:00:26]}  Be8 {[%clk 0:00:01]} 32. Rxb6 {[%clk 0:00:26]} 1-0


[Site "https://www.chess.com"]

[Event "Titled Tuesday Blitz November 29 Early 2022"]
[White "Chernov, Mikhail"]
[Black "Kamsky, Gata"]
[WhiteFideId "24143170"]
[BlackFideId "2000024"]
[WhiteElo "2439"]
[BlackElo "2858"]
[Result "0-1"]
[Round "06"]
[TimeControl "180+1"]
[Date "2022.11.30"]
[WhiteClock "0:00:01"]
[BlackClock "0:00:41"]

1. e4 {[%clk 0:03:00]}  e5 {[%clk 0:02:52]} 2. Nc3 {[%clk 0:03:00]}  Bc5 {[%clk 0:02:48]} 3. Bc4 {[%clk 0:03:00]}  d6 {[%clk 0:02:35]} 4. d3 {[%clk 0:03:00]}  Be6 {[%clk 0:02:21]} 5. Bb3 {[%clk 0:02:43]}  Bxb3 {[%clk 0:02:14]} 6. axb3 {[%clk 0:02:44]}  Ne7 {[%clk 0:02:13]} 7. Na4 {[%clk 0:01:44]}  Nbc6 {[%clk 0:02:02]} 8. Nxc5 {[%clk 0:01:42]}  dxc5 {[%clk 0:02:02]} 9. Ne2 {[%clk 0:01:30]}  O-O {[%clk 0:02:00]} 10. O-O {[%clk 0:01:30]}  f5 {[%clk 0:01:55]} 11. exf5 {[%clk 0:01:28]}  Nxf5 {[%clk 0:01:54]} 12. Ng3 {[%clk 0:01:24]}  a5 {[%clk 0:01:41]} 13. Be3 {[%clk 0:01:17]}  b6 {[%clk 0:01:41]} 14. Qg4 {[%clk 0:00:54]}  Qd7 {[%clk 0:01:23]} 15. Rfe1 {[%clk 0:00:44]}  Rf7 {[%clk 0:01:20]} 16. Nxf5 {[%clk 0:00:35]}  Rxf5 {[%clk 0:01:14]} 17. Re2 {[%clk 0:00:30]}  Raf8 {[%clk 0:01:12]} 18. Rae1 {[%clk 0:00:29]}  R8f6 {[%clk 0:01:09]} 19. Qe4 {[%clk 0:00:27]}  h6 {[%clk 0:01:03]} 20. f3 {[%clk 0:00:22]}  Rf7 {[%clk 0:00:56]} 21. c3 {[%clk 0:00:16]}  R5f6 {[%clk 0:00:52]} 22. Rd2 {[%clk 0:00:13]}  Rd6 {[%clk 0:00:51]} 23. Red1 {[%clk 0:00:12]}  Qe6 {[%clk 0:00:48]} 24. Qh4 {[%clk 0:00:05]}  Qxb3 {[%clk 0:00:44]} 25. Qg4 {[%clk 0:00:01]}  Qe6 {[%clk 0:00:43]} 26. Qa4 {[%clk 0:00:01]}  Rfd7 {[%clk 0:00:41]} 0-1


[Site "https://www.chess.com"]

[Event "Titled Tuesday Blitz November 29 Early 2022"]
[White "Clawitter, Craig"]
[Black "Saravana, Krishnan P."]
[WhiteFideId "2023105"]
[BlackFideId "5018382"]
[WhiteElo "2246"]
[BlackElo "2155"]
[Result "1-0"]
[Round "06"]
[TimeControl "180+1"]
[Date "2022.11.30"]
[WhiteClock "0:00:13"]
[BlackClock "0:00:06"]

1. e4 {[%clk 0:03:00]}  Nc6 {[%clk 0:02:56]} 2. Nc3 {[%clk 0:03:00]}  e5 {[%clk 0:02:52]} 3. f4 {[%clk 0:03:00]}  d6 {[%clk 0:02:42]} 4. Nf3 {[%clk 0:03:00]}  Be7 {[%clk 0:02:35]} 5. Bb5 {[%clk 0:02:59]}  Nf6 {[%clk 0:02:31]} 6. fxe5 {[%clk 0:02:50]}  dxe5 {[%clk 0:02:18]} 7. Nxe5 {[%clk 0:02:49]}  O-O {[%clk 0:02:03]} 8. Bxc6 {[%clk 0:02:43]}  Qd6 {[%clk 0:01:45]} 9. d4 {[%clk 0:02:20]}  bxc6 {[%clk 0:01:40]} 10. O-O {[%clk 0:01:59]}  Ba6 {[%clk 0:01:39]} 11. Re1 {[%clk 0:01:33]}  Rfd8 {[%clk 0:01:35]} 12. Nf3 {[%clk 0:01:29]}  Qd7 {[%clk 0:01:23]} 13. Be3 {[%clk 0:01:19]}  Bb4 {[%clk 0:01:19]} 14. Ne5 {[%clk 0:01:15]}  Qe6 {[%clk 0:01:14]} 15. a3 {[%clk 0:00:59]}  Bxc3 {[%clk 0:01:09]} 16. bxc3 {[%clk 0:00:59]}  Nxe4 {[%clk 0:01:07]} 17. Qf3 {[%clk 0:00:54]}  f5 {[%clk 0:01:04]} 18. Bf4 {[%clk 0:00:28]}  Re8 {[%clk 0:00:59]} 19. Nd3 {[%clk 0:00:23]}  Qg6 {[%clk 0:00:53]} 20. Bxc7 {[%clk 0:00:17]}  Ng5 {[%clk 0:00:53]} 21. Qg3 {[%clk 0:00:15]}  Qh5 {[%clk 0:00:42]} 22. Nf4 {[%clk 0:00:14]}  Qh6 {[%clk 0:00:36]} 23. h4 {[%clk 0:00:13]}  Ne4 {[%clk 0:00:35]} 24. Qh3 {[%clk 0:00:13]}  g6 {[%clk 0:00:32]} 25. Re3 {[%clk 0:00:11]}  Qg7 {[%clk 0:00:29]} 26. Be5 {[%clk 0:00:10]}  Rxe5 {[%clk 0:00:29]} 27. dxe5 {[%clk 0:00:11]}  Qxe5 {[%clk 0:00:29]} 28. Rae1 {[%clk 0:00:12]}  Rf8 {[%clk 0:00:28]} 29. Nd3 {[%clk 0:00:12]}  Qf6 {[%clk 0:00:24]} 30. Nf2 {[%clk 0:00:12]}  Nxf2 {[%clk 0:00:19]} 31. Kxf2 {[%clk 0:00:12]}  f4 {[%clk 0:00:20]} 32. Qe6+ {[%clk 0:00:13]}  Kg7 {[%clk 0:00:19]} 33. Qxf6+ {[%clk 0:00:13]}  Rxf6 {[%clk 0:00:19]} 34. Re7+ {[%clk 0:00:13]}  Kh6 {[%clk 0:00:19]} 35. Rxa7 {[%clk 0:00:13]}  Bc4 {[%clk 0:00:19]} 36. Ree7 {[%clk 0:00:13]}  Bg8 {[%clk 0:00:19]} 37. Rg7 {[%clk 0:00:13]}  Rf8 {[%clk 0:00:19]} 38. Rgc7 {[%clk 0:00:13]}  Kh5 {[%clk 0:00:18]} 39. Rxc6 {[%clk 0:00:12]}  f3 {[%clk 0:00:18]} 40. g3 {[%clk 0:00:12]}  Kg4 {[%clk 0:00:18]} 41. Rc4+ {[%clk 0:00:12]}  Kh3 {[%clk 0:00:18]} 42. Rf4 {[%clk 0:00:11]}  Rc8 {[%clk 0:00:18]} 43. c4 {[%clk 0:00:10]}  Bxc4 {[%clk 0:00:18]} 44. Rxf3 {[%clk 0:00:10]}  Bd5 {[%clk 0:00:17]} 45. Rd3 {[%clk 0:00:09]}  Rxc2+ {[%clk 0:00:17]} 46. Ke3 {[%clk 0:00:10]}  Bc4 {[%clk 0:00:17]} 47. Rd2 {[%clk 0:00:09]}  Rc3+ {[%clk 0:00:18]} 48. Kd4 {[%clk 0:00:10]}  Rc1 {[%clk 0:00:18]} 49. Rc7 {[%clk 0:00:10]}  Rf1 {[%clk 0:00:09]} 50. Rxc4 {[%clk 0:00:10]}  Ra1 {[%clk 0:00:09]} 51. Kc5 {[%clk 0:00:10]}  Rxa3 {[%clk 0:00:08]} 52. Kb4 {[%clk 0:00:10]}  Rxg3 {[%clk 0:00:08]} 53. Rd7 {[%clk 0:00:10]}  h5 {[%clk 0:00:07]} 54. Rg7 {[%clk 0:00:11]}  Rg4 {[%clk 0:00:06]} 55. Rxg4 {[%clk 0:00:10]}  hxg4 {[%clk 0:00:07]} 56. Rxg6 {[%clk 0:00:11]}  Kxh4 {[%clk 0:00:07]} 57. Kc3 {[%clk 0:00:10]}  g3 {[%clk 0:00:08]} 58. Kd2 {[%clk 0:00:11]}  Kh3 {[%clk 0:00:08]} 59. Ke1 {[%clk 0:00:11]}  Kg2 {[%clk 0:00:09]} 60. Rg5 {[%clk 0:00:11]}  Kh2 {[%clk 0:00:06]} 61. Kf1 {[%clk 0:00:11]}  Kh3 {[%clk 0:00:05]} 62. Rh5+ {[%clk 0:00:11]}  Kg4 {[%clk 0:00:05]} 63. Rh8 {[%clk 0:00:11]}  Kf3 {[%clk 0:00:05]} 64. Rf8+ {[%clk 0:00:12]}  Kg4 {[%clk 0:00:05]} 65. Kg2 {[%clk 0:00:13]}  Kh4 {[%clk 0:00:06]} 66. Rg8 {[%clk 0:00:13]} 1-0


[Site "https://www.chess.com"]

[Event "Titled Tuesday Blitz November 29 Early 2022"]
[White "Corrales Jimenez, Fidel"]
[Black "Csonka, Balazs"]
[WhiteFideId "3506690"]
[BlackFideId "742910"]
[WhiteElo "2871"]
[BlackElo "2720"]
[Result "1-0"]
[Round "06"]
[TimeControl "180+1"]
[Date "2022.11.30"]
[WhiteClock "0:01:40"]
[BlackClock "0:00:09"]

1. e4 {[%clk 0:03:00]}  e6 {[%clk 0:02:59]} 2. d4 {[%clk 0:02:57]}  d5 {[%clk 0:02:59]} 3. e5 {[%clk 0:02:57]}  c5 {[%clk 0:02:58]} 4. c3 {[%clk 0:02:58]}  Nc6 {[%clk 0:02:48]} 5. Nf3 {[%clk 0:02:58]}  Bd7 {[%clk 0:02:48]} 6. Na3 {[%clk 0:02:54]}  cxd4 {[%clk 0:02:39]} 7. cxd4 {[%clk 0:02:54]}  Bxa3 {[%clk 0:02:11]} 8. bxa3 {[%clk 0:02:55]}  Qa5+ {[%clk 0:02:11]} 9. Qd2 {[%clk 0:02:51]}  Qxd2+ {[%clk 0:02:10]} 10. Bxd2 {[%clk 0:02:51]}  Nge7 {[%clk 0:02:08]} 11. Bc3 {[%clk 0:02:37]}  Rc8 {[%clk 0:02:03]} 12. Kd2 {[%clk 0:02:37]}  O-O {[%clk 0:01:54]} 13. Bd3 {[%clk 0:02:34]}  Rc7 {[%clk 0:01:54]} 14. g4 {[%clk 0:02:32]}  Rfc8 {[%clk 0:01:52]} 15. Rhc1 {[%clk 0:02:32]}  Ng6 {[%clk 0:01:46]} 16. Bb4 {[%clk 0:02:24]}  Nf4 {[%clk 0:01:27]} 17. Bf1 {[%clk 0:02:17]}  Nxb4 {[%clk 0:01:22]} 18. axb4 {[%clk 0:02:18]}  Ba4 {[%clk 0:01:11]} 19. Rxc7 {[%clk 0:02:10]}  Rxc7 {[%clk 0:01:12]} 20. Rc1 {[%clk 0:02:10]}  Rxc1 {[%clk 0:01:10]} 21. Kxc1 {[%clk 0:02:10]}  Kf8 {[%clk 0:00:54]} 22. h4 {[%clk 0:02:10]}  h6 {[%clk 0:00:49]} 23. h5 {[%clk 0:02:09]}  g5 {[%clk 0:00:39]} 24. hxg6 {[%clk 0:02:08]}  fxg6 {[%clk 0:00:36]} 25. g5 {[%clk 0:02:08]}  hxg5 {[%clk 0:00:26]} 26. Nxg5 {[%clk 0:02:06]}  Bd7 {[%clk 0:00:25]} 27. Kd2 {[%clk 0:02:05]}  Nh5 {[%clk 0:00:24]} 28. Be2 {[%clk 0:02:02]}  Ng7 {[%clk 0:00:23]} 29. Bd3 {[%clk 0:02:00]}  Be8 {[%clk 0:00:20]} 30. Ke3 {[%clk 0:01:58]}  Ke7 {[%clk 0:00:20]} 31. Kf4 {[%clk 0:01:52]}  Nf5 {[%clk 0:00:19]} 32. Bxf5 {[%clk 0:01:48]}  gxf5 {[%clk 0:00:20]} 33. a3 {[%clk 0:01:40]}  Bh5 {[%clk 0:00:20]} 34. Nh7 {[%clk 0:01:38]}  Kf7 {[%clk 0:00:19]} 35. Kg5 {[%clk 0:01:37]}  Bd1 {[%clk 0:00:18]} 36. Nf6 {[%clk 0:01:37]}  Ba4 {[%clk 0:00:17]} 37. Nh5 {[%clk 0:01:37]}  Bd1 {[%clk 0:00:16]} 38. Nf4 {[%clk 0:01:38]}  Ba4 {[%clk 0:00:15]} 39. Kh6 {[%clk 0:01:38]}  Bd1 {[%clk 0:00:14]} 40. Nh3 {[%clk 0:01:38]}  Ba4 {[%clk 0:00:11]} 41. Ng5+ {[%clk 0:01:39]}  Ke7 {[%clk 0:00:11]} 42. Kg7 {[%clk 0:01:39]}  Bd7 {[%clk 0:00:11]} 43. Nh3 {[%clk 0:01:39]}  b6 {[%clk 0:00:11]} 44. Nf4 {[%clk 0:01:40]}  Bc8 {[%clk 0:00:09]} 45. Ng6+ {[%clk 0:01:39]}  Ke8 {[%clk 0:00:09]} 46. Kf6 {[%clk 0:01:40]} 1-0


[Site "https://www.chess.com"]

[Event "Titled Tuesday Blitz November 29 Early 2022"]
[White "D`Arruda, Ricardo D."]
[Black "Matinian, Nikita"]
[WhiteFideId "100692"]
[BlackFideId "24129100"]
[WhiteElo "2468"]
[BlackElo "2422"]
[Result "0-1"]
[Round "06"]
[TimeControl "180+1"]
[Date "2022.11.30"]
[WhiteClock "0:00:03"]
[BlackClock "0:01:04"]

1. d4 {[%clk 0:03:00]}  Nf6 {[%clk 0:02:59]} 2. Nf3 {[%clk 0:03:00]}  g6 {[%clk 0:03:00]} 3. Nc3 {[%clk 0:02:58]}  d5 {[%clk 0:02:59]} 4. Bg5 {[%clk 0:02:58]}  Bg7 {[%clk 0:02:59]} 5. Bxf6 {[%clk 0:02:58]}  exf6 {[%clk 0:02:56]} 6. e3 {[%clk 0:02:57]}  f5 {[%clk 0:02:56]} 7. Ne2 {[%clk 0:02:57]}  Nd7 {[%clk 0:02:56]} 8. g3 {[%clk 0:02:53]}  Nf6 {[%clk 0:02:57]} 9. c3 {[%clk 0:02:53]}  Ne4 {[%clk 0:02:54]} 10. Bg2 {[%clk 0:02:52]}  O-O {[%clk 0:02:53]} 11. O-O {[%clk 0:02:52]}  c6 {[%clk 0:02:51]} 12. Qc2 {[%clk 0:02:51]}  Re8 {[%clk 0:02:46]} 13. c4 {[%clk 0:02:51]}  dxc4 {[%clk 0:02:45]} 14. Qxc4 {[%clk 0:02:50]}  Be6 {[%clk 0:02:45]} 15. Qc2 {[%clk 0:02:49]}  Qb6 {[%clk 0:02:44]} 16. Nf4 {[%clk 0:02:47]}  Rad8 {[%clk 0:02:41]} 17. Nxe6 {[%clk 0:02:46]}  fxe6 {[%clk 0:02:41]} 18. Rfc1 {[%clk 0:02:33]}  h6 {[%clk 0:02:41]} 19. b4 {[%clk 0:02:30]}  Kh7 {[%clk 0:02:41]} 20. a4 {[%clk 0:02:27]}  Qxb4 {[%clk 0:02:40]} 21. Rab1 {[%clk 0:02:27]}  Qe7 {[%clk 0:02:41]} 22. a5 {[%clk 0:02:17]}  a6 {[%clk 0:02:41]} 23. Rb3 {[%clk 0:02:13]}  Nd6 {[%clk 0:02:40]} 24. h4 {[%clk 0:02:07]}  Nb5 {[%clk 0:02:39]} 25. h5 {[%clk 0:02:05]}  g5 {[%clk 0:02:39]} 26. g4 {[%clk 0:02:02]}  Qf7 {[%clk 0:02:33]} 27. Bh3 {[%clk 0:02:01]}  Rf8 {[%clk 0:02:32]} 28. Rd1 {[%clk 0:01:45]}  Kh8 {[%clk 0:02:30]} 29. Rbd3 {[%clk 0:01:43]}  Qc7 {[%clk 0:02:20]} 30. Ne5 {[%clk 0:01:16]}  Bxe5 {[%clk 0:02:17]} 31. dxe5 {[%clk 0:01:17]}  Rxd3 {[%clk 0:02:12]} 32. Qxd3 {[%clk 0:01:15]}  Qxe5 {[%clk 0:02:12]} 33. Qd7 {[%clk 0:01:15]}  Qg7 {[%clk 0:02:09]} 34. Qxe6 {[%clk 0:01:14]}  Nc7 {[%clk 0:02:02]} 35. Qd7 {[%clk 0:01:08]}  fxg4 {[%clk 0:01:47]} 36. Bxg4 {[%clk 0:01:05]}  Nd5 {[%clk 0:01:47]} 37. Qxg7+ {[%clk 0:00:55]}  Kxg7 {[%clk 0:01:48]} 38. e4 {[%clk 0:00:52]}  Nf6 {[%clk 0:01:47]} 39. Bf3 {[%clk 0:00:23]}  g4 {[%clk 0:01:46]} 40. Bg2 {[%clk 0:00:23]}  Nxh5 {[%clk 0:01:45]} 41. e5 {[%clk 0:00:20]}  Nf4 {[%clk 0:01:43]} 42. Be4 {[%clk 0:00:19]}  Rf7 {[%clk 0:01:40]} 43. Kh2 {[%clk 0:00:18]}  h5 {[%clk 0:01:33]} 44. Kg3 {[%clk 0:00:18]}  Ne6 {[%clk 0:01:32]} 45. Rd6 {[%clk 0:00:16]}  Nc5 {[%clk 0:01:25]} 46. Rg6+ {[%clk 0:00:15]}  Kf8 {[%clk 0:01:25]} 47. Bc2 {[%clk 0:00:14]}  Rf3+ {[%clk 0:01:25]} 48. Kg2 {[%clk 0:00:14]}  Ra3 {[%clk 0:01:20]} 49. e6 {[%clk 0:00:12]}  Ra2 {[%clk 0:01:18]} 50. Bf5 {[%clk 0:00:12]}  Re2 {[%clk 0:01:14]} 51. Rh6 {[%clk 0:00:10]}  Re5 {[%clk 0:01:06]} 52. Rxh5 {[%clk 0:00:08]}  Nxe6 {[%clk 0:01:06]} 53. Rh8+ {[%clk 0:00:07]}  Kg7 {[%clk 0:01:07]} 54. Rh7+ {[%clk 0:00:07]}  Kg8 {[%clk 0:01:05]} 55. Rh5 {[%clk 0:00:03]}  Nf4+ {[%clk 0:01:04]} 0-1


[Site "https://www.chess.com"]